bitfinex/quotes_SOLUSD_20250722
["timestamp","ask_amount","ask_price","bid_price","bid_amount"]
[1753206984390,1e-08,203.02,203.01,118.33375285]
[1753206984591,1e-08,203.02,203.01,123.25961857]
[1753206984982,0.06,203.08,203.07,56.27159128]
[1753206985185,0.06,203.08,203.07,91.96403231]
[1753206985387,0.06,203.08,203.07,92.68403231]
[1753206985575,0.06,203.08,203.07,82.35468397]
[1753206985773,0.06,203.08,203.07,92.19159128]
[1753206986976,0.06,203.08,203.07,87.27909427]
[1753206987294,0.06,203.08,203.07,61.91600158]
[1753206987495,0.06,203.08,203.06,64.85]
[1753206987696,0.06,203.08,203.06,29.65]
[1753206988076,0.74,203.08,203.06,29.65]
[1753206988269,0.06,203.08,203.07,92.19159128]
[1753206988473,0.06,203.08,203.07,92.68403231]
[1753206988878,0.06,203.08,203.07,97.11600158]
[1753206989077,0.06,203.08,203.07,96.39600158]
[1753206989290,0.06,203.08,203.07,74.68690731]
[1753206990293,0.06,203.08,203.07,39.48690731]
[1753206990795,0.06,203.08,203.07,29.65]
[1753206991174,0.06,203.08,203.07,39.48690731]
[1753206991891,0.06,203.08,203.07,29.65]
[1753206992499,0.06,203.08,203.07,39.48690731]
[1753206992896,0.06,203.08,203.07,29.65]
[1753206993488,0.06,203.08,203.07,64.83]
[1753206993996,0.06,203.08,203.07,80.31131761]
[1753206994382,0.06,203.08,203.07,97.09600158]
[1753206994581,0.06,203.08,203.07,97.23816315]
[1753206995490,0.06,203.08,203.07,97.73060418]
[1753206996376,0.06,203.08,203.07,97.31600158]
[1753206996781,0.06,203.08,203.07,97.29600158]
[1753206997214,0.06,203.08,203.04,0.72]
[1753206997441,0.06,203.08,203.05,35.38]
[1753206997717,0.68,203.07,203.03,9.83690731]
[1753206997881,0.68,203.07,203.04,35.38]
[1753206998082,0.68,203.07,203.03,45.21690731]
[1753206998385,0.68,203.07,203.03,35.38]
[1753206998588,0.68,203.06,203.01,9.83690731]
[1753206998786,0.68,203.05,203.0,9.83690731]
[1753206999089,14.7613273,203.07,203.01,9.83690731]
[1753206999282,0.68,203.05,203.01,9.83690731]
[1753206999599,0.68,203.05,203.02,9.83690731]
[1753206999998,0.68,203.05,203.01,9.83690731]
[1753207000210,0.68,203.04,203.01,9.83690731]
[1753207000410,10.51690731,203.06,203.0,45.19690731]
[1753207000600,4.92489534,203.05,203.0,45.19690731]
[1753207000808,9.83690731,203.01,202.96,29.65]
[1753207001117,0.68,203.0,202.94,9.83690731]
[1753207001328,0.68,203.0,202.98,9.83690731]
[1753207001533,0.68,203.04,202.99,9.83690731]
[1753207001722,0.68,203.04,203.0,9.83690731]
[1753207002104,4.92489534,203.05,203.0,0.72]
[1753207002326,0.68,203.04,203.0,9.83690731]
[1753207002539,5.6051637,203.04,203.0,9.83690731]
[1753207003035,5.6051637,203.04,202.97,30.37]
[1753207003036,0.68,203.03,202.98,9.83690731]
[1753207003326,0.68,203.02,202.98,9.83690731]
[1753207003540,9.83690731,202.99,202.91,0.72]
[1753207003835,8.0672,203.0,202.9,64.94]
[1753207004024,9.83690731,202.96,202.9,74.77690731]
[1753207004224,0.68,202.95,202.9,0.03]
[1753207004439,0.68,202.95,202.9,9.86690731]
[1753207004616,0.68,202.95,202.92,9.83690731]
[1753207004816,14.76366933,202.98,202.91,10.55690731]
[1753207004817,5.60676202,202.98,202.91,10.55690731]
[1753207005016,15.44366933,202.98,202.92,9.83690731]
[1753207005325,15.44366933,202.98,202.91,9.83690731]
[1753207005518,5.60676202,202.98,202.9,40.33830257]
[1753207005838,15.44366933,202.98,202.92,29.53]
[1753207006325,0.68,202.97,202.9,0.03]
[1753207006517,9.83690731,202.91,202.9,0.03]
[1753207006724,10.51690731,202.91,202.9,0.03]
[1753207007132,12.09350731,202.91,202.9,0.03]
[1753207007435,12.09350731,202.91,202.88,0.03]
[1753207007623,9.83690731,202.89,202.88,0.03]
[1753207008013,10.53690731,202.89,202.88,0.03]
[1753207008211,15.46568645,202.89,202.88,0.03]
[1753207008607,5.62877914,202.89,202.88,0.03]
[1753207008835,15.46568645,202.89,202.88,0.03]
[1753207009038,27.92979587,202.89,202.85,0.03]
[1753207009268,9.83690731,202.86,202.85,0.03]
[1753207009743,10.53690731,202.86,202.85,0.03]
[1753207009951,10.53690731,202.86,202.74,26.0]
[1753207009952,26.0,202.83,202.69,2.60527929]
[1753207010135,9.83690731,202.7,202.69,2.60527929]
[1753207010463,42.78468397,202.77,202.69,2.60527929]
[1753207010464,9.83690731,202.72,202.69,2.60527929]
[1753207010684,9.83690731,202.73,202.69,2.60527929]
[1753207010966,9.83690731,202.7,202.69,0.1]
[1753207011176,0.7,202.72,202.69,0.1]
[1753207011466,8.52690731,202.72,202.69,0.1]
[1753207011664,9.83690731,202.71,202.69,0.1]
[1753207012373,35.64,202.75,202.69,0.1]
[1753207012374,9.83690731,202.7,202.69,0.1]
[1753207012739,9.83690731,202.71,202.69,0.1]
[1753207013064,6.2783,202.73,202.69,0.1]
[1753207013257,45.47690731,202.77,202.7,10.51690731]
[1753207013658,9.83690731,202.76,202.7,0.68]
[1753207014357,9.83690731,202.77,202.71,14.77006304]
[1753207015655,9.83690731,202.72,202.69,0.1]
[1753207015856,0.14216157,202.75,202.69,0.1]
[1753207016167,9.83690731,202.73,202.69,0.1]
[1753207016374,9.83690731,202.72,202.69,0.1]
[1753207016861,40.5719432,202.76,202.69,0.78]
[1753207017168,9.83690731,202.73,202.69,0.1]
[1753207017356,9.83690731,202.7,202.69,0.1]
[1753207018149,9.83690731,202.72,202.69,0.1]
[1753207018567,14.76985112,202.72,202.69,0.1]
[1753207018871,9.83690731,202.7,202.69,0.1]
[1753207019049,45.61906888,202.7,202.69,0.1]
[1753207019250,46.31906888,202.7,202.68,0.03]
[1753207019457,46.31906888,202.7,202.67,0.1]
[1753207019458,10.67906888,202.69,202.67,0.1]
[1753207019769,45.81597619,202.68,202.67,0.1]
[1753207019986,36.64906888,202.68,202.67,0.1]
[1753207020344,1.6212,202.71,202.67,0.1]
[1753207020551,5.60239184,202.75,202.69,9.83690731]
[1753207020769,35.64,202.76,202.7,9.83690731]
[1753207020973,6.55430487,202.77,202.68,29.53]
[1753207020974,1.6224,202.77,202.68,29.53]
[1753207021177,11.35350731,202.82,202.76,9.83690731]
[1753207021351,1.5166,202.82,202.8,9.83690731]
[1753207021554,35.74,202.85,202.8,9.83690731]
[1753207021844,9.83690731,202.82,202.73,0.68]
[1753207022070,0.67,202.84,202.75,9.83690731]
[1753207022370,14.76778729,202.81,202.75,9.83690731]
[1753207022673,9.83690731,202.79,202.71,26.0]
[1753207022972,9.83690731,202.77,202.71,9.83690731]
[1753207023149,9.83690731,202.77,202.7,35.83690731]
[1753207023351,9.83690731,202.77,202.71,9.83690731]
[1753207024793,4.93087558,202.81,202.76,9.83690731]
[1753207025088,9.83690731,202.82,202.77,0.68]
[1753207025296,9.83690731,202.82,202.75,9.83690731]
[1753207025484,14.76707529,202.84,202.78,9.83690731]
[1753207025680,4.93016798,202.84,202.79,9.83690731]
[1753207025976,35.72,202.85,202.79,0.68]
[1753207026181,35.72,202.85,202.79,10.51690731]
[1753207026588,40.64982075,202.85,202.79,10.51690731]
[1753207026794,50.48672806,202.85,202.79,10.51690731]
[1753207027374,40.64982075,202.85,202.8,9.83690731]
[1753207027777,40.64982075,202.85,202.79,10.51690731]
[1753207028799,40.64982075,202.85,202.77,29.53]
[1753207029011,50.48672806,202.85,202.79,9.83690731]
[1753207029178,50.48672806,202.85,202.76,0.68]
[1753207029372,9.83690731,202.82,202.75,9.83690731]
[1753207029574,9.83690731,202.82,202.76,9.83690731]
[1753207030490,4.93072333,202.81,202.75,9.83690731]
[1753207030800,4.93072333,202.81,202.76,9.83690731]
[1753207031600,10.50690731,202.84,202.77,9.83690731]
[1753207032607,4.93023714,202.83,202.77,9.83690731]
[1753207033111,50.54688037,202.85,202.79,9.83690731]
[1753207035520,9.83690731,202.84,202.78,9.83690731]
[1753207035819,40.70997306,202.85,202.79,9.83690731]
[1753207036116,40.70980749,202.85,202.8,9.83690731]
[1753207036310,40.70980749,202.85,202.8,10.51690731]
[1753207037986,50.5467148,202.85,202.79,9.83690731]
[1753207038185,40.70980749,202.85,202.8,9.83690731]
[1753207038585,40.70980749,202.85,202.8,10.49690731]
[1753207040907,40.70980749,202.85,202.77,4.9316453]
[1753207040908,51.2167148,202.85,202.79,9.83690731]
[1753207041424,9.97906888,202.84,202.67,12.43493688]
[1753207041609,9.83690731,202.81,202.75,9.83690731]
[1753207041809,0.67,202.84,202.75,9.83690731]
[1753207041810,9.83690731,202.83,202.77,9.83690731]
[1753207042003,9.83690731,202.83,202.76,9.83690731]
[1753207042206,9.83690731,202.82,202.76,9.83690731]
[1753207043832,4.93048022,202.82,202.76,9.83690731]
[1753207044035,48.10437761,202.85,202.8,9.83690731]
[1753207044036,35.78,202.85,202.8,9.83690731]
[1753207044236,50.54668537,202.85,202.79,9.83690731]
[1753207044409,40.70977806,202.85,202.79,9.83690731]
[1753207045242,50.54668537,202.85,202.79,9.83690731]
[1753207045830,50.54668537,202.85,202.77,0.66]
[1753207046141,50.54668537,202.85,202.78,9.83690731]
[1753207046358,50.54668537,202.85,202.79,9.83690731]
[1753207046860,35.78,202.85,202.82,9.83690731]
[1753207047043,0.06,202.85,202.82,10.49690731]
[1753207047966,0.06,202.85,202.83,9.83690731]
[1753207048261,0.06,202.85,202.84,9.83690731]
[1753207048439,0.06,202.85,202.84,10.49690731]
[1753207049660,0.06,202.85,202.8,35.83690731]
[1753207049661,0.06,202.85,202.82,35.83690731]
[1753207050167,0.06,202.85,202.83,9.83690731]
[1753207050863,0.06,202.85,202.83,10.49690731]
[1753207052462,0.06,202.85,202.84,9.83690731]
[1753207052962,0.06,202.85,202.83,10.49690731]
[1753207053867,0.06,202.85,202.84,10.49690731]
[1753207054072,0.06,202.85,202.84,27.28159128]
[1753207055567,0.06,202.85,202.84,32.21158536]
[1753207056071,0.06,202.85,202.84,32.35374693]
[1753207056461,0.06,202.85,202.84,37.28974693]
[1753207056753,0.06,202.85,202.84,32.35374693]
[1753207056953,0.06,202.9,202.88,42.78468397]
[1753207057145,0.06,202.9,202.89,62.04159128]
[1753207057347,0.06,202.9,202.89,62.70159128]
[1753207057575,0.06,202.9,202.89,67.63037042]
[1753207057962,0.06,202.9,202.89,67.77253199]
[1753207060172,0.06,202.9,202.89,22.37346311]
[1753207060383,0.06,202.9,202.89,67.61037042]
[1753207061778,0.06,203.03,202.93,42.78468397]
[1753207061979,0.06,203.03,203.01,9.83690731]
[1753207062447,0.06,203.03,203.02,9.83690731]
[1753207062880,0.06,203.03,203.01,9.83690731]
[1753207064579,0.06,203.03,203.02,9.83690731]
[1753207065100,0.06,203.03,203.02,10.49690731]
[1753207065261,0.06,203.03,203.02,9.83690731]
[1753207066189,0.06,203.03,203.02,44.9525304]
[1753207066480,0.06,203.03,203.02,39.36690731]
[1753207067061,0.06,203.03,202.99,39.36690731]
[1753207068593,0.06,203.03,202.99,29.53]
[1753207068975,0.06,203.03,202.99,39.36690731]
[1753207069175,0.06,203.03,203.01,9.83690731]
[1753207069376,0.06,203.03,203.02,9.83690731]
[1753207069577,0.06,203.03,203.02,10.48690731]
[1753207070488,0.06,203.03,203.02,15.4125304]
[1753207070687,0.06,203.03,203.02,44.9425304]
[1753207071004,0.06,203.03,203.02,39.36690731]
[1753207071984,0.06,203.03,203.02,44.2925304]
[1753207072194,0.06,203.03,203.02,39.36690731]
[1753207072397,0.06,203.03,203.02,40.01690731]
[1753207072615,0.06,203.03,203.02,44.9425304]
[1753207073109,0.06,203.03,203.02,40.01690731]
[1753207074102,0.06,203.03,203.02,39.36690731]
[1753207075899,0.06,203.03,203.02,40.01690731]
[1753207076280,0.06,203.03,203.02,35.10562309]
[1753207076814,10.56690731,203.03,203.0,29.53]
[1753207077181,0.67,203.02,203.0,29.53]
[1753207077789,0.67,203.02,202.99,29.53]
[1753207077990,9.89690731,203.03,202.99,29.53]
[1753207078192,0.06,203.03,202.99,29.53]
[1753207078389,0.06,203.03,202.99,44.29325254]
[1753207079034,0.06,203.03,202.99,29.53]
[1753207080210,0.06,203.03,202.99,30.18]
[1753207080720,0.06,203.03,203.0,30.18]
[1753207080889,0.06,203.03,203.0,40.01690731]
[1753207081208,0.06,203.03,203.01,0.65]
[1753207082098,0.06,203.03,203.0,29.53]
[1753207082293,0.06,203.03,203.02,39.36690731]
[1753207082622,0.06,203.03,203.02,39.85946961]
[1753207082996,0.06,203.03,203.02,39.36690731]
[1753207083399,0.06,203.03,203.01,29.53]
[1753207084259,0.06,203.03,203.02,39.36690731]
[1753207084459,0.06,203.03,203.02,40.50946961]
[1753207085767,0.06,203.03,203.02,57.29415358]
[1753207085969,0.06,203.03,203.02,87.76503093]
[1753207086264,0.06,203.03,203.02,97.60193824]
[1753207086749,0.06,203.03,203.02,35.59818539]
[1753207086931,0.06,203.03,203.02,80.6750927]
[1753207088274,0.06,203.03,203.02,75.74946961]
[1753207088476,0.06,203.03,203.02,80.6750927]
[1753207089145,0.06,203.03,203.02,76.94720074]
[1753207089576,0.06,203.03,203.02,41.70720074]
[1753207089753,0.06,203.03,203.02,36.78157765]
[1753207089954,0.06,203.03,203.02,41.70720074]
[1753207091393,0.06,203.03,203.02,30.0225623]
[1753207091557,0.06,203.03,203.02,35.63901535]
[1753207091745,0.06,203.03,203.02,40.56463844]
[1753207091942,0.06,203.03,203.02,41.21463844]
[1753207092267,0.73,203.03,203.0,29.53]
[1753207092576,6.16901535,203.03,203.02,29.53]
[1753207093048,6.83901535,203.03,203.02,29.53]
[1753207093467,0.06,203.03,202.99,29.53]
[1753207093664,0.73,203.03,202.99,29.53]
[1753207094461,0.06,203.03,203.02,29.53]
[1753207094664,0.06,203.03,203.02,35.63901535]
[1753207094869,0.06,203.03,203.02,36.28901535]
[1753207095584,0.06,203.03,203.02,29.53]
[1753207096272,0.73,203.03,203.02,29.53]
[1753207096776,0.73,203.03,203.0,29.53]
[1753207096777,0.06,203.03,203.0,29.53]
[1753207097168,0.06,203.03,203.0,39.95843422]
[1753207097486,0.06,203.03,203.01,0.68]
[1753207097851,0.06,203.03,203.02,39.98843422]
[1753207098078,0.06,203.03,179.09,0.39221763]
[1753207098079,0.67,203.02,202.98,29.53]
[1753207098280,9.77843422,202.99,202.98,29.53]
[1753207098476,0.67,202.99,202.93,0.68]
[1753207099652,5.59644159,202.99,202.93,0.68]
[1753207100576,9.77843422,202.95,202.92,29.53]
[1753207100763,9.77843422,202.95,202.9,0.03]
[1753207100963,17.24231921,202.99,202.9,0.71]
[1753207101274,10.44843422,202.98,202.92,9.77843422]
[1753207101466,10.44843422,202.98,202.9,30.24]
[1753207101467,9.77843422,202.97,202.9,30.24]
[1753207101781,9.77843422,203.0,202.94,9.77843422]
[1753207102281,9.77843422,203.0,202.94,10.45843422]
[1753207102668,9.77843422,203.01,202.95,9.77843422]
[1753207102872,22.85151789,203.02,202.96,9.77843422]
[1753207103491,8.1474,203.02,202.97,9.77843422]
[1753207103671,8.1474,203.02,202.96,0.68]
[1753207103672,1.6074,203.02,202.99,9.77843422]
[1753207103883,35.24,203.03,202.99,9.77843422]
[1753207104087,35.24,203.03,202.99,10.45843422]
[1753207105168,40.16544297,203.03,202.99,9.77843422]
[1753207105890,40.16544297,203.03,202.98,9.77843422]
[1753207106088,35.24,203.03,202.99,9.77843422]
[1753207106280,35.24,203.03,203.0,0.68]
[1753207106478,0.06,203.03,203.0,10.45843422]
[1753207106771,0.06,203.03,202.92,0.68]
[1753207106772,9.77843422,203.01,202.92,0.68]
[1753207107094,9.77843422,202.95,202.9,0.03]
[1753207107302,9.77843422,202.95,202.9,16.81468397]
[1753207107469,10.44843422,202.95,202.9,16.81468397]
[1753207107876,10.44843422,202.95,202.9,46.34468397]
[1753207108370,10.44843422,202.95,202.9,47.02468397]
[1753207108575,9.77843422,202.94,202.9,30.24]
[1753207108772,9.77843422,202.91,202.9,0.03]
[1753207109266,10.44843422,202.91,202.9,0.03]
[1753207110277,9.77843422,202.92,202.9,0.03]
[1753207110500,9.77843422,202.91,202.9,0.03]
[1753207110699,10.44843422,202.91,202.9,0.03]
[1753207110899,26.0,202.88,202.81,0.03]
[1753207111071,9.77843422,202.86,202.81,0.03]
[1753207111274,35.26,202.87,202.81,0.03]
[1753207111583,9.77843422,202.82,202.81,0.03]
[1753207111781,0.14216157,202.84,202.81,0.03]
[1753207111981,0.67,202.83,202.81,0.03]
[1753207112186,10.44843422,202.82,202.81,0.03]
[1753207112505,15.37891444,202.82,202.81,0.03]
[1753207112695,23.24947601,202.82,202.81,0.03]
[1753207113194,80.6341108,202.82,202.69,26.1]
[1753207113498,0.81216157,202.81,202.71,9.77843422]
[1753207113702,9.77843422,202.75,202.7,0.68]
[1753207114005,9.77843422,202.75,202.69,0.1]
[1753207114303,9.77843422,202.71,202.69,0.1]
[1753207114672,9.77843422,202.72,202.69,0.1]
[1753207115296,9.77843422,202.74,202.69,0.78]
[1753207115485,9.77843422,202.75,202.69,5.71361566]
[1753207115679,45.07843422,202.75,202.69,5.71361566]
[1753207116291,9.77843422,202.73,202.69,0.1]
[1753207117004,9.77843422,202.74,202.69,0.1]
[1753207117305,45.74843422,202.75,202.69,5.03359208]
[1753207117600,35.3,202.75,202.7,9.77843422]
[1753207117773,35.3,202.75,202.71,0.68]
[1753207118474,35.3,202.75,202.71,5.61296647]
[1753207118912,0.67,202.8,202.73,9.77843422]
[1753207119074,45.07843422,202.79,202.73,9.77843422]
[1753207119611,9.77843422,202.78,202.72,10.45843422]
[1753207119786,45.07843422,202.79,202.73,9.77843422]
[1753207119990,35.3,202.79,202.74,9.77843422]
[1753207120189,35.3,202.79,202.75,10.45843422]
[1753207120508,35.3,202.79,202.75,9.77843422]
[1753207120715,35.3,202.79,202.76,10.45843422]
[1753207120917,0.67,202.86,202.78,9.77843422]
[1753207121210,35.28,202.84,202.79,9.77843422]
[1753207121607,35.28,202.84,202.8,10.45843422]
[1753207121759,35.28,202.84,202.79,9.77843422]
[1753207121903,35.28,202.84,202.76,16.78468397]
[1753207121904,10.44843422,202.83,202.77,9.77843422]
[1753207122105,0.67,202.83,202.77,9.77843422]
[1753207122310,45.05843422,202.84,202.77,9.77843422]
[1753207122678,9.77843422,202.82,202.74,0.68]
[1753207122879,9.77843422,202.8,202.74,0.68]
[1753207123215,9.77843422,202.78,202.72,9.77843422]
[1753207123918,9.77843422,202.78,202.72,14.71132414]
[1753207124103,9.77843422,202.77,202.71,15.39156442]
[1753207124276,35.97,202.79,202.71,15.39156442]
[1753207124612,9.77843422,202.77,202.71,15.39156442]
[1753207124794,9.77843422,202.78,202.72,9.77843422]
[1753207124994,9.77843422,202.78,202.72,10.45843422]
[1753207125898,9.77843422,202.78,202.73,29.53]
[1753207126390,9.77843422,202.78,202.73,30.21]
[1753207127004,4.93037983,202.83,202.75,39.30843422]
[1753207127202,35.3,202.82,202.76,10.45843422]
[1753207127403,35.3,202.82,202.77,9.77843422]
[1753207127588,35.3,202.82,202.78,9.77843422]
[1753207128221,35.3,202.82,202.77,39.30843422]
[1753207128409,10.44843422,202.81,202.77,29.53]
[1753207128607,10.44843422,202.81,202.76,29.53]
[1753207129021,15.37942248,202.8,202.74,39.98843422]
[1753207129325,15.37942248,202.8,202.74,44.92081209]
[1753207129814,9.77843422,202.8,202.74,44.92081209]
[1753207130300,45.07843422,202.82,202.76,9.77843422]
[1753207130496,35.3,202.82,202.79,9.77843422]
[1753207130706,35.3,202.82,202.79,39.98843422]
[1753207131222,35.3,202.82,202.8,35.14096646]
[1753207131428,35.3,202.82,202.81,0.68]
[1753207131601,35.26,202.86,202.81,10.45843422]
[1753207132508,35.26,202.86,202.81,0.68]
[1753207133305,50.63795536,202.86,202.8,39.30843422]
[1753207133527,50.63795536,202.86,202.8,29.53]
[1753207133714,50.63795536,202.86,202.8,44.23933757]
[1753207134024,35.26,202.86,202.8,44.91933757]
[1753207134425,40.18956517,202.86,202.8,44.91933757]
[1753207134925,35.26,202.86,202.8,44.91933757]
[1753207135725,35.26,202.86,202.82,29.53]
[1753207136724,35.26,202.86,202.82,44.91890896]
[1753207137114,0.73,202.91,202.85,9.77843422]
[1753207137306,35.2,202.9,202.86,10.45843422]
[1753207137725,35.2,202.9,202.86,0.68]
[1753207138027,35.2,202.9,202.85,29.53]
[1753207138331,35.2,202.9,202.86,9.77843422]
[1753207138506,35.2,202.9,202.87,0.68]
[1753207138704,35.2,202.9,202.89,9.77843422]
[1753207138916,0.06,202.91,202.89,39.98843422]
[1753207139125,0.06,202.91,202.9,10.45843422]
[1753207139304,0.06,202.91,202.9,39.98843422]
[1753207139629,0.06,202.91,202.9,56.77311819]
[1753207140747,0.06,202.91,202.9,61.70165441]
[1753207141135,0.06,202.91,202.9,56.77311819]
[1753207141443,0.06,202.91,202.86,0.14216157]
[1753207141444,0.06,202.91,202.86,30.21]
[1753207141750,0.06,202.91,202.87,0.68]
[1753207141946,10.44843422,202.9,202.85,26.0]
[1753207142133,10.44843422,202.89,202.84,29.53]
[1753207142444,10.44843422,202.89,202.83,30.21]
[1753207142643,4.92902208,202.88,202.83,29.53]
[1753207142855,10.44843422,202.89,202.83,29.53]
[1753207143060,10.44843422,202.89,202.83,39.98843422]
[1753207143262,4.92878985,202.89,202.84,9.77843422]
[1753207143725,4.92878985,202.89,202.84,10.45843422]
[1753207145646,14.70700441,202.9,202.84,10.45843422]
[1753207145854,14.70700441,202.9,202.85,0.68]
[1753207146036,35.26,202.91,202.85,9.77843422]
[1753207146241,0.06,202.91,202.87,9.77843422]
[1753207146543,0.06,202.91,202.86,39.98843422]
[1753207148157,14.76682938,202.91,202.86,30.21]
[1753207148556,0.06,202.91,202.87,0.68]
[1753207150827,0.06,202.91,202.86,39.30843422]
[1753207150828,0.06,202.91,202.88,0.68]
[1753207151231,0.06,202.91,202.86,29.53]
[1753207151432,9.77843422,202.9,202.84,30.21]
[1753207151668,10.44843422,202.9,202.84,39.98843422]
[1753207151841,10.44843422,202.9,202.84,30.21]
[1753207152656,10.44843422,202.9,202.84,39.98843422]
[1753207152831,14.70712433,202.9,202.84,39.98843422]
[1753207153032,4.92869011,202.9,202.85,10.45843422]
[1753207153231,4.92869011,202.9,202.85,9.77843422]
[1753207153458,4.92869011,202.9,202.86,0.68]
[1753207154053,4.92869011,202.9,202.85,9.77843422]
[1753207154254,14.70712433,202.9,202.85,0.68]
[1753207154457,0.06,202.91,202.86,10.45843422]
[1753207154638,0.06,202.91,202.87,9.77843422]
[1753207154834,0.06,202.91,202.88,9.77843422]
[1753207155031,0.06,202.91,202.88,10.45843422]
[1753207155354,0.06,202.91,202.89,0.68]
[1753207155744,0.06,202.91,202.86,30.21]
[1753207155946,0.06,202.91,202.88,9.77843422]
[1753207156329,0.06,202.91,202.89,0.68]
[1753207156532,0.06,202.91,202.9,9.77843422]
[1753207156729,0.06,202.91,202.9,39.30843422]
[1753207156946,0.06,202.91,202.9,39.98843422]
[1753207158252,0.06,202.91,202.87,39.30843422]
[1753207158464,0.06,202.91,202.87,29.53]
[1753207159963,0.06,202.91,202.87,30.23]
[1753207160856,0.06,202.91,202.88,0.7]
[1753207161740,0.06,202.91,202.87,29.53]
[1753207162049,0.06,202.91,202.87,30.23]
[1753207162454,9.83843422,202.91,202.86,29.53]
[1753207162755,9.83843422,202.91,202.86,30.23]
[1753207163166,9.77843422,202.88,202.84,29.53]
[1753207163462,44.83843422,202.89,202.83,29.53]
[1753207163759,44.83843422,202.89,202.84,0.7]
[1753207164134,44.83843422,202.89,202.85,0.7]
[1753207164335,49.76731944,202.89,202.85,0.7]
[1753207165752,49.76731944,202.89,202.83,29.53]
[1753207165949,9.77843422,202.88,202.83,29.53]
[1753207166148,9.77843422,202.88,202.83,30.23]
[1753207167155,14.70755797,202.88,202.84,0.7]
[1753207168054,14.70755797,202.88,202.85,0.7]
[1753207168262,14.70755797,202.88,202.83,30.23]
[1753207168441,14.70755797,202.88,202.84,0.7]
[1753207168649,14.70755797,202.88,202.81,30.26]
[1753207168650,9.77843422,202.86,202.81,30.26]
[1753207168851,35.04,202.85,202.81,30.26]
[1753207169241,39.96984416,202.85,202.81,30.26]
[1753207169438,39.96984416,202.85,202.82,0.7]
[1753207170261,46.09331557,202.85,202.81,0.03]
[1753207170464,6.12347141,202.84,202.81,0.03]
[1753207170840,46.09331557,202.85,202.81,0.03]
[1753207171249,46.09331557,202.85,202.81,0.73]
[1753207172351,35.04,202.85,202.81,0.03]
[1753207172555,35.04,202.87,202.84,35.65347141]
[1753207172860,41.16347141,202.87,202.84,0.7]
[1753207173036,35.04,202.87,202.84,0.7]
[1753207173463,35.04,202.87,202.85,0.7]
[1753207174267,12.93557141,202.91,202.85,36.35347141]
[1753207174566,35.04,202.9,202.85,36.35347141]
[1753207174762,6.12347141,202.89,202.85,29.53]
[1753207174964,6.12347141,202.88,202.83,0.7]
[1753207175264,6.12347141,202.88,202.81,4.96051602]
[1753207175265,6.12347141,202.85,202.81,0.03]
[1753207175446,41.16347141,202.85,202.81,0.03]
[1753207175859,6.12347141,202.84,202.81,0.03]
[1753207176942,35.04,202.85,202.81,0.73]
[1753207177142,44.83872496,202.85,202.81,0.03]
[1753207177359,4.92999408,202.84,202.81,0.03]
[1753207177649,15.39871904,202.84,202.81,0.03]
[1753207177857,0.67,202.83,202.81,0.03]
[1753207178050,35.04,202.82,202.81,0.03]
[1753207178372,35.04,202.82,202.81,0.73]
[1753207179071,9.79872496,202.87,202.81,0.73]
[1753207179255,35.04,202.86,202.83,9.79872496]
[1753207179448,35.04,202.86,202.83,10.49872496]
[1753207179643,35.04,202.86,202.84,10.49872496]
[1753207179868,35.04,202.86,202.85,0.7]
[1753207180172,4.92858197,202.9,202.85,10.49872496]
[1753207180381,35.04,202.89,202.86,0.7]
[1753207181048,0.06,202.91,202.87,0.7]
[1753207181248,35.04,202.9,202.87,0.7]
[1753207182074,35.04,202.9,202.87,40.02872496]